fUSD/lending_fUSD_20240412
["ID","MTS","AMOUNT","RATE_DAILY","PERIOD"]
[322234377,1712907042813,-500.0,0.00027397,2]
[322234378,1712907042822,-500.0,0.00027397,2]
[322234379,1712907042832,-606.34,0.00027397,2]
[322234380,1712907042842,-198.8687483,0.00027397,2]
[322234381,1712907042855,-500.0,0.00027397,2]
[322234382,1712907042864,-1066.45,0.00027397,2]
[322234383,1712907042874,-500.0,0.00027397,2]
[322234384,1712907042883,-586.39,0.00027397,2]
[322234385,1712907042894,-500.0,0.00027397,2]
[322234386,1712907042903,-500.0,0.00027397,2]
[322234387,1712907042913,-500.0,0.00027397,2]
[322234388,1712907042924,-500.0,0.00027397,2]
[322234389,1712907042935,-500.0,0.00027397,2]
[322234390,1712907042946,-500.0,0.00027397,2]
[322234391,1712907042956,-500.0,0.00027397,2]
[322234392,1712907042966,-500.0,0.00027397,2]
[322234393,1712907042976,-500.0,0.00027397,2]
[322234394,1712907042987,-500.0,0.00027397,2]
[322234395,1712907042996,-500.0,0.00027397,2]
[322234396,1712907043007,-500.0,0.00027397,2]
[322234397,1712907043018,-500.0,0.00027397,2]
[322234398,1712907043028,-500.0,0.00027397,2]
[322234399,1712907043039,-500.0,0.00027397,2]
[322234400,1712907043049,-500.0,0.00027397,2]
[322234401,1712907043061,-500.0,0.00027397,2]
[322234402,1712907043071,-500.0,0.00027397,2]
[322234403,1712907043080,-500.0,0.00027397,2]
[322234404,1712907043090,-744.52,0.00027397,2]
[322234406,1712907043100,-500.0,0.00027397,2]
[322234408,1712907043109,-500.0,0.00027397,2]
[322234410,1712907043119,-582.83,0.00027397,2]
[322234412,1712907043129,-500.0,0.00027397,2]
[322234413,1712907043139,-500.0,0.00027397,2]
[322234414,1712907043149,-174.06462202,0.00027397,2]
[322234415,1712907043160,-2942.27,0.00027397,2]
[322234416,1712907043170,-500.0,0.00027397,2]
[322234417,1712907043179,-500.0,0.00027397,2]
[322234418,1712907043188,-501.15715302,0.00027397,2]
[322234419,1712907043198,-500.0,0.00027397,2]
[322234420,1712907043208,-500.0,0.00027397,2]
[322234421,1712907043219,-1998.99,0.00027397,2]
[322234422,1712907043231,-500.0,0.00027397,2]
[322234423,1712907043241,-914.51,0.00027397,2]
[322234424,1712907043250,-579.90889699,0.00027397,2]
[322234425,1712907043259,-1869.17,0.00027397,2]
[322234426,1712907043269,-500.0,0.00027397,2]
[322234427,1712907043278,-509.28818175,0.00027397,2]
[322234428,1712907043288,-500.0,0.00027397,2]
[322234429,1712907043298,-500.0,0.00027397,2]
[322234430,1712907043308,-500.0,0.00027397,2]
[322234431,1712907043317,-2824.67,0.00027397,2]
[322234432,1712907043328,-500.0,0.00027397,2]
[322234433,1712907043340,-500.0,0.00027397,2]
[322234434,1712907043351,-500.0,0.00027397,2]
[322234435,1712907043361,-1029.64,0.00027397,2]
[322234436,1712907043372,-500.0,0.00027397,2]
[322234437,1712907043383,-500.0,0.00027397,2]
[322234438,1712907043393,-500.0,0.00027397,2]
[322234439,1712907043402,-500.0,0.00027397,2]
[322234440,1712907043412,-500.0,0.00027397,2]
[322234441,1712907043421,-500.0,0.00027397,2]
[322234442,1712907043431,-1798.54,0.00027397,2]
[322234443,1712907043440,-500.0,0.00027397,2]
[322234444,1712907043449,-1478.97,0.00027397,2]
[322234445,1712907043460,-768.09,0.00027397,2]
[322234446,1712907043470,-500.0,0.00027397,2]
[322234447,1712907043480,-500.0,0.00027397,2]
[322234448,1712907043491,-500.0,0.00027397,2]
[322234449,1712907043501,-500.0,0.00027397,2]
[322234450,1712907043511,-500.0,0.00027397,2]
[322234451,1712907043521,-500.0,0.00027397,2]
[322234452,1712907043530,-845.66,0.00027397,2]
[322234453,1712907043539,-500.0,0.00027397,2]
[322234454,1712907043549,-1175.82,0.00027397,2]
[322234455,1712907043561,-500.0,0.00027397,2]
[322234456,1712907043570,-500.0,0.00027397,2]
[322234457,1712907043580,-500.0,0.00027397,2]
[322234458,1712907043592,-512.58766365,0.00027397,2]
[322234459,1712907043602,-525.0,0.00027397,2]
[322234460,1712907043612,-2578.53,0.00027397,2]
[322234461,1712907043622,-500.0,0.00027397,2]
[322234462,1712907043631,-500.0,0.00027397,2]
[322234463,1712907043641,-991.97,0.00027397,2]
[322234464,1712907043651,-500.0,0.00027397,2]
[322234465,1712907043661,-500.0,0.00027397,2]
[322234466,1712907043671,-653.35,0.00027397,2]
[322234467,1712907043681,-356.51964192,0.00027397,2]
[322234468,1712907043690,-839.31,0.00027397,2]
[322234469,1712907043700,-500.0,0.00027397,2]
[322234470,1712907043709,-500.0,0.00027397,2]
[322234471,1712907043720,-500.0,0.00027397,2]
[322234472,1712907043730,-610.98,0.00027397,2]
[322234473,1712907043741,-736.67,0.00027397,2]
[322234474,1712907043751,-500.0,0.00027397,2]
[322234475,1712907043761,-513.6,0.00027397,2]
[322234476,1712907043770,-500.0,0.00027397,2]
[322234477,1712907043780,-2205.8,0.00027397,2]
[322234478,1712907043790,-6189.95,0.00027397,2]
[322234479,1712907043800,-500.0,0.00027397,2]
[322234480,1712907043810,-530.78,0.00027397,2]
[322234481,1712907043820,-500.0,0.00027397,2]
[322234496,1712907044002,-500.0,0.00027397,2]
[322234497,1712907044019,-2074.61,0.00027397,2]
[322234498,1712907044028,-500.0,0.00027397,2]
[322234499,1712907044040,-500.0,0.00027397,2]
[322234500,1712907044051,-500.0,0.00027397,2]
[322234501,1712907044061,-930.85,0.00027397,2]
[322234502,1712907044071,-559.57023273,0.00027397,2]
[322234503,1712907044081,-500.0,0.00027397,2]
[322234504,1712907044093,-1822.94,0.00027397,2]
[322234505,1712907044104,-500.0,0.00027397,2]
[322234506,1712907044113,-500.0,0.00027397,2]
[322234507,1712907044122,-628.67,0.00027397,2]
[322234508,1712907044131,-500.0,0.00027397,2]
[322234509,1712907044141,-500.0,0.00027397,2]
[322234510,1712907044150,-503.25421844,0.00027397,2]
[322234511,1712907044159,-500.0,0.00027397,2]
[322234512,1712907044169,-500.0,0.00027397,2]
[322234513,1712907044178,-500.0,0.00027397,2]
[322234514,1712907044187,-500.0,0.00027397,2]
[322234515,1712907044197,-984.09,0.00027397,2]
[322234516,1712907044206,-508.16611639,0.00027397,2]
[322234517,1712907044215,-2195.86,0.00027397,2]
[322234518,1712907044224,-500.0,0.00027397,2]
[322234519,1712907044234,-5551.45,0.00027397,2]
[322234520,1712907044243,-500.0,0.00027397,2]
[322234521,1712907044253,-534.28444117,0.00027397,2]
[322234522,1712907044263,-500.0,0.00027397,2]
[322234523,1712907044272,-652.56,0.00027397,3]
[322234524,1712907044282,-652.56,0.00027397,3]
[322234525,1712907044291,-652.56,0.00027397,3]
[322234526,1712907044300,-500.0,0.00027397,2]
[322234527,1712907044309,-652.56,0.00027397,3]
[322234528,1712907044318,-652.56,0.00027397,3]
[322234529,1712907044328,-652.56,0.00027397,3]
[322234530,1712907044338,-500.0,0.00027397,2]
[322234531,1712907044347,-500.0,0.00027397,2]
[322234532,1712907044356,-652.56,0.00027397,3]
[322234533,1712907044366,-652.56,0.00027397,3]
[322234534,1712907044375,-500.0,0.00027397,2]
[322234535,1712907044384,-500.0,0.00027397,2]
[322234536,1712907044394,-652.56,0.00027397,3]
[322234537,1712907044403,-652.56,0.00027397,3]
[322234538,1712907044412,-652.56,0.00027397,3]
[322234539,1712907044424,-652.56,0.00027397,3]
[322234540,1712907044435,-652.56,0.00027397,3]
[322234541,1712907044444,-500.0,0.00027397,2]
[322234542,1712907044455,-652.56,0.00027397,3]
[322234543,1712907044464,-652.56,0.00027397,3]
[322234544,1712907044473,-500.0,0.00027397,2]
[322234545,1712907044492,-652.56,0.00027397,3]
[322234546,1712907044501,-652.56,0.00027397,3]
[322234547,1712907044511,-652.56,0.00027397,3]
[322234548,1712907044520,-652.56,0.00027397,3]
[322234549,1712907044530,-652.56,0.00027397,3]
[322234550,1712907044539,-699.92,0.00027397,2]
[322234551,1712907044549,-652.56,0.00027397,3]
[322234552,1712907044559,-652.56,0.00027397,3]
[322234553,1712907044568,-652.56,0.00027397,3]
[322234554,1712907044578,-652.57282978,0.00027397,3]
[322234555,1712907044587,-500.0,0.00027397,2]
[322234556,1712907044596,-1110.9,0.00027397,2]
[322234557,1712907044609,-500.0,0.00027397,2]
[322234558,1712907044621,-6296.45,0.00027397,2]
[322234559,1712907044630,-2241.44,0.00027397,2]
[322234560,1712907044639,-500.0,0.00027397,2]
[322234561,1712907044648,-500.0,0.00027397,2]
[322234562,1712907044657,-500.0,0.00027397,2]
[322234563,1712907044667,-500.0,0.00027397,2]
[322234564,1712907044677,-500.0,0.00027397,2]
[322234565,1712907044686,-500.0,0.00027397,2]
[322234566,1712907044695,-810.7,0.00027397,2]
[322234567,1712907044704,-568.47,0.00027397,2]
[322234568,1712907044713,-500.0,0.00027397,2]
[322234569,1712907044722,-878.81,0.00027397,2]
[322234570,1712907044732,-1239.04,0.00027397,2]
[322234571,1712907044742,-1074.72,0.00027397,2]
[322234572,1712907044751,-1070.89,0.00027397,2]
[322234573,1712907044762,-500.0,0.00027397,2]
[322234574,1712907044771,-884.3,0.00027397,2]
[322234575,1712907044781,-500.0,0.00027397,2]
[322234576,1712907044790,-500.0,0.00027397,2]
[322234577,1712907044799,-500.0,0.00027397,2]
[322234578,1712907044809,-500.0,0.00027397,2]
[322234579,1712907044819,-500.0,0.00027397,2]
[322234580,1712907044828,-289.99437907,0.00027397,2]
[322234581,1712907044838,-500.0,0.00027397,2]
[322234582,1712907044851,-500.0,0.00027397,2]
[322234583,1712907044861,-1933.57,0.00027397,2]
[322234584,1712907044871,-500.0,0.00027397,2]
[322234585,1712907044880,-500.0,0.00027397,2]
[322234586,1712907044892,-2770.1,0.00027397,2]
[322234587,1712907044902,-2113.62,0.00027397,2]
[322234588,1712907044911,-500.0,0.00027397,2]
[322234589,1712907044921,-500.0,0.00027397,2]
[322234590,1712907044931,-500.0,0.00027397,2]
[322234591,1712907044941,-1956.28,0.00027397,2]
[322234592,1712907044951,-1689.87,0.00027397,2]
[322234593,1712907044960,-500.0,0.00027397,2]
[322234594,1712907044969,-1462.29,0.00027397,2]
[322234595,1712907044980,-500.0,0.00027397,2]
[322234596,1712907044990,-501.49932505,0.00027397,2]
[322234597,1712907044999,-570.69035417,0.00027397,2]
[322234598,1712907045008,-321.32961478,0.00027397,2]
[322234599,1712907045017,-500.0,0.00027397,2]
[322234600,1712907045026,-500.0,0.00027397,2]
[322234601,1712907045036,-500.0,0.00027397,2]
[322234602,1712907045045,-500.0,0.00027397,2]
[322234603,1712907045055,-1818.66,0.00027397,2]
[322234604,1712907045064,-500.0,0.00027397,2]
[322234605,1712907045073,-500.0,0.00027397,2]
[322234606,1712907045082,-2144.61,0.00027397,2]
[322234607,1712907045091,-503.0088994,0.00027397,2]
[322234608,1712907045100,-500.0,0.00027397,2]
[322234609,1712907045110,-500.0,0.00027397,2]
[322234610,1712907045118,-500.0,0.00027397,2]
[322234611,1712907045128,-500.0,0.00027397,2]
[322234612,1712907045138,-3337.08,0.00027397,2]
[322234613,1712907045147,-500.0,0.00027397,2]
[322234614,1712907045156,-994.38,0.00027397,2]
[322234615,1712907045165,-500.0,0.00027397,2]
[322234616,1712907045174,-500.0,0.00027397,2]
[322234617,1712907045183,-500.0,0.00027397,2]
[322234618,1712907045193,-500.0,0.00027397,2]
[322234619,1712907045202,-500.0,0.00027397,2]
[322234620,1712907045212,-500.0,0.00027397,2]
[322234621,1712907045221,-256.1266979,0.00027397,2]
[322234622,1712907045232,-965.94,0.00027397,2]
[322234623,1712907045241,-506.65679018,0.00027397,2]
[322234624,1712907045250,-1270.71,0.00027397,2]
[322234625,1712907045259,-838.89,0.00027397,2]
[322234626,1712907045269,-8292.25,0.00027397,2]
[322234627,1712907045278,-508.48516213,0.00027397,2]
[322234628,1712907045287,-500.0,0.00027397,2]
[322234629,1712907045296,-500.0,0.00027397,2]
[322234630,1712907045305,-500.0,0.00027397,2]
[322234631,1712907045314,-500.0,0.00027397,2]
[322234632,1712907045324,-507.7305928,0.00027397,2]
[322234633,1712907045333,-500.0,0.00027397,2]
[322234634,1712907045343,-503.75912921,0.00027397,2]
[322234635,1712907045352,-500.0,0.00027397,2]
[322234636,1712907045362,-500.0,0.00027397,2]
[322234637,1712907045371,-500.0,0.00027397,2]
[322234638,1712907045380,-500.0,0.00027397,2]
[322234639,1712907045390,-508.69597259,0.00027397,2]
[322234640,1712907045399,-500.0,0.00027397,2]
[322234641,1712907045409,-1674.65,0.00027397,2]
[322234642,1712907045418,-566.16,0.00027397,2]
[322234643,1712907045427,-500.0,0.00027397,2]
[322234644,1712907045436,-500.0,0.00027397,2]
[322234645,1712907045446,-500.0,0.00027397,2]
[322234646,1712907045455,-518.07,0.00027397,2]
[322234647,1712907045465,-500.0,0.00027397,2]
[322234648,1712907045474,-500.0,0.00027397,2]
[322234649,1712907045486,-500.0,0.00027397,2]
[322234650,1712907045495,-500.0,0.00027397,2]
[322234651,1712907045504,-500.0,0.00027397,2]
[322234652,1712907045513,-500.0,0.00027397,2]
[322234653,1712907045522,-251.52,0.00027397,10]
[322234654,1712907045532,-209.6,0.00027397,10]
[322234655,1712907045541,-174.67,0.00027397,10]
[322234656,1712907045551,-161.17,0.00027397,2]
[322234657,1712907045560,-153.49,0.00027397,2]
[322234658,1712907045569,-912.49441763,0.00027443,2]
[322234659,1712907045579,-1000.0,0.00027483,10]
[322234660,1712907045588,-912.49441763,0.00027492,2]
[322234661,1712907045597,-154.09758038,0.00027503,2]
[322234662,1712907045606,-912.49441763,0.00027541,2]
[322234663,1712907045616,-153.32512064,0.00027557,2]
[322234664,1712907045626,-155.44367156,0.0002757,2]
[322234665,1712907045635,-516.38610683,0.0002757,2]
[322234666,1712907045644,-1381.62344342,0.0002757,2]
[322234667,1712907045654,-197.9808932,0.0002757,2]
[322234668,1712907045663,-173.15014276,0.0002757,2]
[322234669,1712907045672,-500.0,0.0002757,2]
[322234670,1712907045682,-232161.2524,0.00027571,2]
[322234671,1712907045692,-213.0,0.00027571,2]
[322234672,1712907045702,-152.06887318,0.00027578,2]
[322234673,1712907045711,-154.09758038,0.00027588,2]
[322234674,1712907045721,-912.49441763,0.0002759,2]
[322234675,1712907045731,-912.49441763,0.00027639,2]
[322234676,1712907045741,-157.59573881,0.00027651,2]
[322234677,1712907045751,-155.75305263,0.00027668,2]
[322234678,1712907045760,-1089.17,0.00027669,2]
[322234679,1712907045770,-500.0,0.0002767,2]
[322234680,1712907045779,-500.0,0.0002767,2]
[322234681,1712907045788,-500.0,0.0002767,2]
[322234682,1712907045797,-516.98370369,0.0002767,2]
[322234683,1712907045806,-500.0,0.0002767,2]
[322234684,1712907045815,-395.85964336,0.0002767,2]
[322234685,1712907045825,-500.0,0.0002767,2]
[322234686,1712907045835,-500.0,0.0002767,2]
[322234687,1712907045848,-265.19955453,0.0002767,2]
[322234688,1712907045857,-500.0,0.0002767,2]
[322234689,1712907045866,-500.0,0.0002767,2]
[322234690,1712907045876,-500.0,0.0002767,2]
[322234691,1712907045886,-500.0,0.0002767,2]
[322234692,1712907045896,-500.0,0.0002767,2]
[322234693,1712907045905,-500.0,0.0002767,2]
[322234694,1712907045915,-500.0,0.0002767,2]
[322234695,1712907045926,-500.0,0.0002767,2]
[322234696,1712907045935,-579.65685184,0.0002767,2]
[322234697,1712907045944,-500.0,0.0002767,2]
[322234698,1712907045953,-500.0,0.0002767,2]
[322234699,1712907045962,-500.0,0.0002767,2]
[322234700,1712907045972,-500.0,0.0002767,2]
[322234701,1712907045982,-548.12,0.0002767,2]
[322234702,1712907045992,-500.0,0.0002767,2]
[322234703,1712907046002,-500.0,0.0002767,2]
[322234704,1712907046012,-524.38344858,0.0002767,2]
[322234705,1712907046021,-500.0,0.0002767,2]
[322234706,1712907046030,-500.0,0.0002767,2]
[322234707,1712907046041,-500.0,0.0002767,2]
[322234708,1712907046050,-500.0,0.0002767,2]
[322234709,1712907046060,-500.0,0.0002767,2]
[322234710,1712907046069,-500.0,0.0002767,2]
[322234711,1712907046078,-500.0,0.0002767,2]
[322234712,1712907046088,-1089.17,0.0002767,2]
[322234713,1712907046097,-500.0,0.0002767,2]
[322234714,1712907046107,-500.0,0.0002767,2]
[322234715,1712907046116,-500.0,0.0002767,2]
[322234716,1712907046126,-500.0,0.0002767,2]
[322234717,1712907046135,-500.0,0.0002767,2]
[322234718,1712907046145,-526.11097981,0.0002767,2]
[322234720,1712907046154,-500.0,0.0002767,2]
[322234722,1712907046163,-512.35670286,0.0002767,2]
[322234723,1712907046172,-165.15,0.0002767,2]
[322234725,1712907046181,-500.0,0.0002767,2]
[322234726,1712907046190,-500.0,0.0002767,2]
[322234727,1712907046200,-500.0,0.0002767,2]
[322234729,1712907046209,-500.0,0.0002767,2]
[322234730,1712907046219,-500.0,0.0002767,2]
[322234731,1712907046228,-500.0,0.0002767,2]
[322234732,1712907046237,-500.0,0.0002767,2]
[322234733,1712907046246,-500.0,0.0002767,2]
[322234734,1712907046255,-500.0,0.0002767,2]
[322234735,1712907046264,-506.42843127,0.0002767,2]
[322234736,1712907046316,-500.0,0.0002767,2]
[322234737,1712907046325,-500.0,0.0002767,2]
[322234738,1712907046334,-500.0,0.0002767,2]
[322234739,1712907046343,-500.0,0.0002767,2]
[322234740,1712907046352,-500.0,0.0002767,2]
[322234741,1712907046361,-500.0,0.0002767,2]
[322234742,1712907046370,-511.70503147,0.0002767,2]
[322234743,1712907046379,-529.29512759,0.0002767,2]
[322234744,1712907046388,-150.0,0.0002767,2]
[322234745,1712907046398,-500.0,0.0002767,2]
[322234746,1712907046407,-500.0,0.0002767,2]
[322234747,1712907046415,-500.0,0.0002767,2]
[322234748,1712907046426,-500.0,0.0002767,2]
[322234749,1712907046435,-526.14294828,0.0002767,2]
[322234750,1712907046444,-512.42312367,0.0002767,2]
[322234751,1712907046453,-500.0,0.0002767,2]
[322234752,1712907046463,-500.0,0.0002767,2]
[322234753,1712907046473,-564.81583515,0.0002767,2]
[322234754,1712907046484,-500.0,0.0002767,2]
[322234755,1712907046494,-500.0,0.0002767,2]
[322234756,1712907046503,-500.0,0.0002767,2]
[322234757,1712907046514,-500.0,0.0002767,2]
[322234758,1712907046523,-500.0,0.0002767,2]
[322234759,1712907046534,-500.0,0.0002767,2]
[322234760,1712907046543,-525.90587811,0.0002767,2]
[322234761,1712907046553,-500.0,0.0002767,2]
[322234762,1712907046562,-500.0,0.0002767,2]
[322234763,1712907046573,-500.0,0.0002767,2]
[322234764,1712907046582,-500.0,0.0002767,2]
[322234765,1712907046591,-500.0,0.0002767,2]
[322234766,1712907046601,-500.0,0.0002767,2]
[322234767,1712907046609,-500.0,0.0002767,2]
[322234768,1712907046618,-500.0,0.0002767,2]
[322234769,1712907046627,-500.0,0.0002767,2]
[322234770,1712907046636,-500.0,0.0002767,2]
[322234771,1712907046645,-500.0,0.0002767,2]
[322234772,1712907046654,-500.0,0.0002767,2]
[322234773,1712907046663,-500.0,0.0002767,2]
[322234774,1712907046672,-500.0,0.0002767,2]
[322234775,1712907046683,-500.0,0.0002767,2]
[322234776,1712907046693,-500.0,0.0002767,2]
[322234777,1712907046703,-269.15452375,0.0002767,2]
[322234778,1712907046713,-500.0,0.0002767,2]
[322234779,1712907046722,-507.05823381,0.0002767,2]
[322234780,1712907046733,-642.12826592,0.0002767,2]
[322234781,1712907046743,-500.0,0.0002767,2]
[322234782,1712907046753,-500.0,0.0002767,2]
[322234783,1712907046763,-500.0,0.0002767,2]
[322234784,1712907046772,-500.59199436,0.0002767,2]
[322234785,1712907046781,-500.0,0.0002767,2]
[322234786,1712907046791,-567.03672959,0.0002767,2]
[322234787,1712907046800,-500.0,0.0002767,2]
[322234788,1712907046809,-500.0,0.0002767,2]
[322234789,1712907046819,-279.19312295,0.0002767,2]
[322234790,1712907046828,-502.99274683,0.0002767,2]
[322234791,1712907046838,-500.0,0.0002767,2]
[322234792,1712907046849,-500.0,0.0002767,2]
[322234793,1712907046859,-500.0,0.0002767,2]
[322234794,1712907046868,-523.22403137,0.0002767,2]
[322234795,1712907046878,-500.0,0.0002767,2]
[322234796,1712907046889,-500.0,0.0002767,2]
[322234797,1712907046898,-500.0,0.0002767,2]
[322234798,1712907046908,-389.23455708,0.0002767,2]
[322234799,1712907046917,-500.0,0.0002767,2]
[322234800,1712907046929,-500.0,0.0002767,2]
[322234801,1712907046938,-500.0,0.0002767,2]
[322234802,1712907046948,-606.73324938,0.0002767,2]
[322234803,1712907046958,-500.0,0.0002767,2]
[322234804,1712907046968,-519.67972739,0.0002767,2]
[322234805,1712907046977,-500.0,0.0002767,2]
[322234806,1712907046987,-500.0,0.0002767,2]
[322234807,1712907046996,-500.0,0.0002767,2]
[322234808,1712907047005,-572.88130075,0.0002767,2]
[322234809,1712907047015,-500.0,0.0002767,2]
[322234810,1712907047025,-500.0,0.0002767,2]
[322234811,1712907047034,-560.64413422,0.0002767,2]
[322234812,1712907047043,-500.0,0.0002767,2]
[322234813,1712907047053,-500.0,0.0002767,2]
[322234814,1712907047064,-500.0,0.0002767,2]
[322234815,1712907047073,-500.0,0.0002767,2]
[322234816,1712907047082,-509.05288913,0.0002767,2]
[322234817,1712907047092,-500.0,0.0002767,2]
[322234818,1712907047101,-500.0,0.0002767,2]
[322234819,1712907047110,-500.0,0.0002767,2]
[322234820,1712907047119,-500.0,0.0002767,2]
[322234821,1712907047128,-587.88619341,0.0002767,2]
[322234822,1712907047138,-500.0,0.0002767,2]
[322234823,1712907047147,-500.0,0.0002767,2]
[322234824,1712907047156,-500.0,0.0002767,2]
[322234825,1712907047166,-500.0,0.0002767,2]
[322234826,1712907047175,-500.0,0.0002767,2]
[322234827,1712907047184,-500.0,0.0002767,2]
[322234828,1712907047194,-500.0,0.0002767,2]
[322234829,1712907047203,-511.27139862,0.0002767,2]
[322234830,1712907047213,-500.0,0.0002767,2]
[322234831,1712907047222,-500.0,0.0002767,2]
[322234832,1712907047232,-500.0,0.0002767,2]
[322234833,1712907047242,-407.88022228,0.0002767,2]
[322234834,1712907047250,-500.0,0.0002767,2]
[322234835,1712907047260,-510.50220953,0.0002767,2]
[322234836,1712907047269,-500.0,0.0002767,2]
[322234837,1712907047279,-500.0,0.0002767,2]
[322234838,1712907047288,-500.0,0.0002767,2]
[322234839,1712907047297,-504.93271433,0.0002767,2]
[322234840,1712907047306,-500.0,0.0002767,2]
[322234841,1712907047315,-500.0,0.0002767,2]
[322234842,1712907047324,-500.0,0.0002767,2]
[322234843,1712907047333,-500.0,0.0002767,2]
[322234844,1712907047342,-500.0,0.0002767,2]
[322234845,1712907047351,-500.0,0.0002767,2]
[322234846,1712907047360,-515.30388534,0.0002767,2]
[322234847,1712907047370,-500.0,0.0002767,2]
[322234848,1712907047379,-500.0,0.0002767,2]
[322234849,1712907047389,-500.0,0.0002767,2]
[322234850,1712907047398,-500.0,0.0002767,2]
[322234851,1712907047407,-500.0,0.0002767,2]
[322234852,1712907047416,-501.27445194,0.0002767,2]
[322234853,1712907047426,-507.60296936,0.0002767,2]
[322234854,1712907047435,-500.0,0.0002767,2]
[322234855,1712907047444,-500.0,0.0002767,2]
[322234856,1712907047453,-500.0,0.0002767,2]
[322234857,1712907047462,-504.17206962,0.0002767,2]
[322234858,1712907047471,-506.61068164,0.0002767,2]
[322234859,1712907047481,-508.57453215,0.0002767,2]
[322234860,1712907047490,-500.0,0.0002767,2]
[322234861,1712907047499,-579.1548941,0.0002767,2]
[322234862,1712907047509,-500.0,0.0002767,2]
[322234863,1712907047518,-387.85939244,0.0002767,2]
[322234864,1712907047527,-500.0,0.0002767,2]
[322234865,1712907047536,-500.0,0.0002767,2]
[322234866,1712907047544,-500.0,0.0002767,2]
[322234867,1712907047553,-500.0,0.0002767,2]
[322234868,1712907047563,-505.08130386,0.0002767,2]
[322234869,1712907047572,-500.0,0.0002767,2]
[322234870,1712907047581,-500.0,0.0002767,2]
[322234871,1712907047590,-500.0,0.0002767,2]
[322234872,1712907047600,-500.0,0.0002767,2]
[322234873,1712907047609,-513.06095171,0.0002767,2]
[322234874,1712907047618,-500.0,0.0002767,2]
[322234875,1712907047627,-500.0,0.0002767,2]
[322234876,1712907047636,-500.0,0.0002767,2]
[322234877,1712907047645,-500.0,0.0002767,2]
[322234878,1712907047655,-500.0,0.0002767,2]
[322234879,1712907047664,-500.0,0.0002767,2]
[322234880,1712907047673,-500.0,0.0002767,2]
[322234881,1712907047682,-518.99672285,0.0002767,2]
[322234882,1712907047691,-500.0,0.0002767,2]
[322234883,1712907047700,-500.0,0.0002767,2]
[322234884,1712907047709,-500.0,0.0002767,2]
[322234885,1712907047719,-506.48353963,0.0002767,2]
[322234886,1712907047728,-500.0,0.0002767,2]
[322234887,1712907047739,-500.0,0.0002767,2]
[322234888,1712907047749,-524.73874838,0.0002767,2]
[322234889,1712907047758,-500.0,0.0002767,2]
[322234890,1712907047767,-510.90962527,0.0002767,2]
[322234891,1712907047776,-513.8606864,0.0002767,2]
[322234892,1712907047785,-506.95065071,0.0002767,2]
[322234893,1712907047795,-500.0,0.0002767,2]
[322234894,1712907047807,-500.0,0.0002767,2]
[322234895,1712907047827,-500.0,0.0002767,2]
[322234896,1712907047838,-500.0,0.0002767,2]
[322234897,1712907047855,-500.0,0.0002767,2]
[322234898,1712907047864,-500.0,0.0002767,2]